[Event "Titled Tuesday Blitz March 07 Late 2023"]
[White "Marcolino, Daniel Mattos"]
[Black "Vifleemskaia, Svetlana"]
[WhiteFideId "2106841"]
[BlackFideId "4129490"]
[WhiteElo "2112"]
[BlackElo "1930"]
[Result "1-0"]
[Round "08"]
[TimeControl "180+2"]
[Date "2023.03.07"]
[WhiteClock "0:00:07"]
[BlackClock "0:00:25"]

1. d4 {[%clk 0:03:00]}  Nf6 {[%clk 0:02:58]} 2. Nf3 {[%clk 0:03:00]}  d5 {[%clk 0:02:58]} 3. c4 {[%clk 0:02:58]}  dxc4 {[%clk 0:02:58]} 4. e3 {[%clk 0:02:57]}  a6 {[%clk 0:02:56]} 5. a4 {[%clk 0:02:55]}  e6 {[%clk 0:02:48]} 6. Bxc4 {[%clk 0:02:55]}  b6 {[%clk 0:02:49]} 7. O-O {[%clk 0:02:55]}  Bb7 {[%clk 0:02:49]} 8. Nc3 {[%clk 0:02:54]}  Be7 {[%clk 0:02:49]} 9. Qe2 {[%clk 0:02:54]}  O-O {[%clk 0:02:48]} 10. Rd1 {[%clk 0:02:55]}  Bb4 {[%clk 0:02:44]} 11. Ne5 {[%clk 0:02:44]}  Nbd7 {[%clk 0:02:42]} 12. Nd3 {[%clk 0:02:43]}  Bd6 {[%clk 0:02:39]} 13. e4 {[%clk 0:02:38]}  Bb4 {[%clk 0:02:34]} 14. Nxb4 {[%clk 0:02:28]}  Qe7 {[%clk 0:02:32]} 15. Nc2 {[%clk 0:02:21]}  e5 {[%clk 0:02:22]} 16. Bg5 {[%clk 0:02:12]}  h6 {[%clk 0:02:20]} 17. Bxf6 {[%clk 0:02:11]}  Nxf6 {[%clk 0:02:19]} 18. Nd5 {[%clk 0:01:52]}  Bxd5 {[%clk 0:02:05]} 19. Bxd5 {[%clk 0:01:53]}  Rad8 {[%clk 0:02:00]} 20. Bc4 {[%clk 0:01:20]}  exd4 {[%clk 0:01:53]} 21. Rxd4 {[%clk 0:01:18]}  Rxd4 {[%clk 0:01:52]} 22. Nxd4 {[%clk 0:01:18]}  Re8 {[%clk 0:01:42]} 23. Bxa6 {[%clk 0:00:53]}  Qb4 {[%clk 0:01:37]} 24. Nc6 {[%clk 0:00:36]}  Qc5 {[%clk 0:01:32]} 25. Bb5 {[%clk 0:00:31]}  Rxe4 {[%clk 0:01:30]} 26. Qf3 {[%clk 0:00:25]}  Qb4 {[%clk 0:01:21]} 27. Qc3 {[%clk 0:00:20]}  Qd6 {[%clk 0:01:16]} 28. h3 {[%clk 0:00:17]}  Qf4 {[%clk 0:01:11]} 29. Rc1 {[%clk 0:00:16]}  Nd5 {[%clk 0:01:05]} 30. Qc2 {[%clk 0:00:13]}  Nf6 {[%clk 0:00:51]} 31. Rd1 {[%clk 0:00:12]}  g6 {[%clk 0:00:48]} 32. Rd8+ {[%clk 0:00:10]}  Kg7 {[%clk 0:00:48]} 33. Rd1 {[%clk 0:00:08]}  g5 {[%clk 0:00:44]} 34. Qd2 {[%clk 0:00:08]}  Qh4 {[%clk 0:00:28]} 35. Nd4 {[%clk 0:00:07]}  g4 {[%clk 0:00:25]} 36. Nf5+ {[%clk 0:00:07]} 1-0


[Site "https://www.chess.com"]

[Event "Titled Tuesday Blitz March 07 Late 2023"]
[White "Souza, Gustavo Horokoski De"]
[Black "Paspuel, Trosky"]
[WhiteFideId "2146584"]
[BlackFideId "3602150"]
[WhiteElo "1859"]
[BlackElo "2325"]
[Result "0-1"]
[Round "08"]
[TimeControl "180+2"]
[Date "2023.03.07"]
[WhiteClock "0:00:56"]
[BlackClock "0:01:29"]

1. d4 {[%clk 0:02:52]}  Nf6 {[%clk 0:02:59]} 2. c4 {[%clk 0:02:51]}  e6 {[%clk 0:02:58]} 3. Nc3 {[%clk 0:02:49]}  Bb4 {[%clk 0:02:56]} 4. e3 {[%clk 0:02:47]}  O-O {[%clk 0:02:55]} 5. Ne2 {[%clk 0:02:35]}  c6 {[%clk 0:02:55]} 6. a3 {[%clk 0:02:28]}  Ba5 {[%clk 0:02:55]} 7. b4 {[%clk 0:02:27]}  Bc7 {[%clk 0:02:55]} 8. Ng3 {[%clk 0:02:28]}  d5 {[%clk 0:02:56]} 9. Bb2 {[%clk 0:02:27]}  Nbd7 {[%clk 0:02:53]} 10. Rc1 {[%clk 0:02:25]}  e5 {[%clk 0:02:52]} 11. cxd5 {[%clk 0:02:20]}  cxd5 {[%clk 0:02:36]} 12. Bd3 {[%clk 0:02:11]}  e4 {[%clk 0:02:26]} 13. Bb1 {[%clk 0:02:10]}  Re8 {[%clk 0:02:11]} 14. O-O {[%clk 0:02:08]}  Nf8 {[%clk 0:02:12]} 15. Ba2 {[%clk 0:01:57]}  Be6 {[%clk 0:02:06]} 16. f3 {[%clk 0:01:54]}  Bxg3 {[%clk 0:01:47]} 17. hxg3 {[%clk 0:01:52]}  exf3 {[%clk 0:01:48]} 18. Qxf3 {[%clk 0:01:45]}  Ng6 {[%clk 0:01:34]} 19. Rce1 {[%clk 0:01:28]}  Ne4 {[%clk 0:01:33]} 20. Ne2 {[%clk 0:01:13]}  Nd2 {[%clk 0:01:31]} 21. Qf2 {[%clk 0:01:11]}  Nxf1 {[%clk 0:01:31]} 22. Rxf1 {[%clk 0:01:12]}  Rc8 {[%clk 0:01:32]} 23. Nf4 {[%clk 0:01:12]}  Nxf4 {[%clk 0:01:32]} 24. gxf4 {[%clk 0:01:11]}  Bf5 {[%clk 0:01:30]} 25. a4 {[%clk 0:00:56]}  Rc2 {[%clk 0:01:29]} 0-1


[Site "https://www.chess.com"]

[Event "Titled Tuesday Blitz March 07 Late 2023"]
[White "Vargas, Mauricio"]
[Black "Delgado Rosas, Fatima Alexandra"]
[WhiteFideId "4404572"]
[BlackFideId "6603963"]
[WhiteElo "2025"]
[BlackElo "2317"]
[Result "0-1"]
[Round "08"]
[TimeControl "180+2"]
[Date "2023.03.07"]
[WhiteClock "0:00:09"]
[BlackClock "0:01:29"]

1. e4 {[%clk 0:02:58]}  Nc6 {[%clk 0:02:58]} 2. f4 {[%clk 0:02:57]}  d5 {[%clk 0:02:59]} 3. e5 {[%clk 0:02:58]}  Bf5 {[%clk 0:02:59]} 4. Nf3 {[%clk 0:02:59]}  e6 {[%clk 0:02:59]} 5. d3 {[%clk 0:02:54]}  Bc5 {[%clk 0:02:59]} 6. Ng5 {[%clk 0:02:52]}  h6 {[%clk 0:02:43]} 7. Nf3 {[%clk 0:02:51]}  Nge7 {[%clk 0:02:42]} 8. h3 {[%clk 0:02:50]}  h5 {[%clk 0:02:35]} 9. d4 {[%clk 0:02:49]}  Bb6 {[%clk 0:02:35]} 10. c3 {[%clk 0:02:50]}  Qd7 {[%clk 0:02:35]} 11. b4 {[%clk 0:02:47]}  a6 {[%clk 0:02:34]} 12. a4 {[%clk 0:02:47]}  a5 {[%clk 0:02:32]} 13. b5 {[%clk 0:02:44]}  Na7 {[%clk 0:02:32]} 14. g3 {[%clk 0:02:43]}  Bxb1 {[%clk 0:02:28]} 15. Rxb1 {[%clk 0:02:42]}  Nf5 {[%clk 0:02:29]} 16. Kf2 {[%clk 0:02:34]}  h4 {[%clk 0:02:27]} 17. g4 {[%clk 0:02:33]}  Ng3 {[%clk 0:02:28]} 18. Rg1 {[%clk 0:02:29]}  Nc8 {[%clk 0:02:28]} 19. Bd2 {[%clk 0:02:24]}  Ne4+ {[%clk 0:02:26]} 20. Kg2 {[%clk 0:02:22]}  f5 {[%clk 0:02:17]} 21. g5 {[%clk 0:02:18]}  g6 {[%clk 0:02:14]} 22. Rc1 {[%clk 0:02:17]}  Ba7 {[%clk 0:02:13]} 23. Be3 {[%clk 0:02:16]}  Nb6 {[%clk 0:02:13]} 24. Bd3 {[%clk 0:02:15]}  Qe7 {[%clk 0:02:13]} 25. Qe2 {[%clk 0:02:06]}  Kf7 {[%clk 0:02:13]} 26. c4 {[%clk 0:02:02]}  c6 {[%clk 0:02:09]} 27. c5 {[%clk 0:02:01]}  Nxa4 {[%clk 0:02:09]} 28. b6 {[%clk 0:01:59]}  Bb8 {[%clk 0:02:06]} 29. Qa2 {[%clk 0:01:50]}  Nac3 {[%clk 0:02:05]} 30. Qb3 {[%clk 0:01:31]}  a4 {[%clk 0:02:05]} 31. Qc2 {[%clk 0:01:31]}  Nb5 {[%clk 0:02:04]} 32. Qe2 {[%clk 0:01:22]}  Qd7 {[%clk 0:02:03]} 33. Ra1 {[%clk 0:01:19]}  a3 {[%clk 0:02:03]} 34. Rgb1 {[%clk 0:01:12]}  Ra5 {[%clk 0:02:03]} 35. Nd2 {[%clk 0:01:09]}  Nbc3 {[%clk 0:02:01]} 36. Qf1 {[%clk 0:00:59]}  Nxb1 {[%clk 0:01:55]} 37. Nxb1 {[%clk 0:00:58]}  a2 {[%clk 0:01:54]} 38. Nd2 {[%clk 0:00:56]}  Nxd2 {[%clk 0:01:51]} 39. Bxd2 {[%clk 0:00:55]}  Ra3 {[%clk 0:01:52]} 40. Bc1 {[%clk 0:00:50]}  Ra8 {[%clk 0:01:47]} 41. Qe2 {[%clk 0:00:42]}  Bc7 {[%clk 0:01:46]} 42. bxc7 {[%clk 0:00:40]}  Qxc7 {[%clk 0:01:47]} 43. Rxa2 {[%clk 0:00:39]}  Rhb8 {[%clk 0:01:46]} 44. Bd2 {[%clk 0:00:36]}  Rxa2 {[%clk 0:01:44]} 45. Kf3 {[%clk 0:00:32]}  Rba8 {[%clk 0:01:41]} 46. Qf2 {[%clk 0:00:30]}  R8a3 {[%clk 0:01:36]} 47. Ke3 {[%clk 0:00:29]}  Rxd2 {[%clk 0:01:33]} 48. Kxd2 {[%clk 0:00:28]}  Qa5+ {[%clk 0:01:34]} 49. Ke3 {[%clk 0:00:28]}  Qc3 {[%clk 0:01:33]} 50. Qe2 {[%clk 0:00:26]}  Ra4 {[%clk 0:01:33]} 51. Kf3 {[%clk 0:00:18]}  Qxd4 {[%clk 0:01:33]} 52. Qd2 {[%clk 0:00:11]}  Ra3 {[%clk 0:01:33]} 53. Ke2 {[%clk 0:00:09]}  Rb3 {[%clk 0:01:29]} 0-1


[Site "https://www.chess.com"]

[Event "Titled Tuesday Blitz March 07 Late 2023"]
[White "Desideri, Ricardo Maruchi"]
[Black "Winkels, Marcel"]
[WhiteFideId "2110440"]
[BlackFideId "1003887"]
[WhiteElo "1945"]
[BlackElo "1900"]
[Result "1-0"]
[Round "08"]
[TimeControl "180+2"]
[Date "2023.03.07"]
[WhiteClock "0:01:11"]
[BlackClock "0:00:27"]

1. e4 {[%clk 0:02:59]}  d5 {[%clk 0:02:56]} 2. exd5 {[%clk 0:02:58]}  Nf6 {[%clk 0:02:56]} 3. Bb5+ {[%clk 0:02:55]}  c6 {[%clk 0:02:55]} 4. dxc6 {[%clk 0:02:53]}  Nxc6 {[%clk 0:02:54]} 5. Bxc6+ {[%clk 0:02:53]}  bxc6 {[%clk 0:02:54]} 6. Nc3 {[%clk 0:02:53]}  e5 {[%clk 0:02:50]} 7. d3 {[%clk 0:02:51]}  Bg4 {[%clk 0:02:45]} 8. Nf3 {[%clk 0:02:51]}  Bd6 {[%clk 0:02:33]} 9. O-O {[%clk 0:02:50]}  O-O {[%clk 0:02:31]} 10. Re1 {[%clk 0:02:50]}  Re8 {[%clk 0:02:28]} 11. Bg5 {[%clk 0:02:50]}  h6 {[%clk 0:02:26]} 12. Bxf6 {[%clk 0:02:46]}  Qxf6 {[%clk 0:02:25]} 13. Ne4 {[%clk 0:02:46]}  Qd8 {[%clk 0:02:21]} 14. Nxd6 {[%clk 0:02:42]}  Qxd6 {[%clk 0:02:21]} 15. h3 {[%clk 0:02:33]}  Bh5 {[%clk 0:02:20]} 16. g4 {[%clk 0:02:31]}  Bg6 {[%clk 0:02:20]} 17. Qe2 {[%clk 0:02:28]}  e4 {[%clk 0:02:07]} 18. dxe4 {[%clk 0:02:12]}  Rxe4 {[%clk 0:02:05]} 19. Qd3 {[%clk 0:02:08]}  Qe6 {[%clk 0:01:52]} 20. Rxe4 {[%clk 0:01:55]}  Bxe4 {[%clk 0:01:51]} 21. Qe3 {[%clk 0:01:54]}  Qd5 {[%clk 0:01:39]} 22. c4 {[%clk 0:01:42]}  Qe6 {[%clk 0:01:24]} 23. Nd4 {[%clk 0:01:38]}  Qe8 {[%clk 0:01:18]} 24. Re1 {[%clk 0:01:36]}  c5 {[%clk 0:01:09]} 25. Qxe4 {[%clk 0:01:26]}  Qxe4 {[%clk 0:01:08]} 26. Rxe4 {[%clk 0:01:26]}  cxd4 {[%clk 0:01:08]} 27. Rxd4 {[%clk 0:01:26]}  Kf8 {[%clk 0:01:05]} 28. b4 {[%clk 0:01:26]}  Ke7 {[%clk 0:01:05]} 29. a4 {[%clk 0:01:25]}  Rb8 {[%clk 0:01:04]} 30. c5 {[%clk 0:01:24]}  a5 {[%clk 0:01:03]} 31. b5 {[%clk 0:01:24]}  Ke6 {[%clk 0:00:58]} 32. f4 {[%clk 0:01:22]}  g5 {[%clk 0:00:57]} 33. Rd6+ {[%clk 0:01:18]}  Ke7 {[%clk 0:00:56]} 34. f5 {[%clk 0:01:16]}  Rc8 {[%clk 0:00:52]} 35. f6+ {[%clk 0:01:16]}  Ke8 {[%clk 0:00:50]} 36. c6 {[%clk 0:01:16]}  Rb8 {[%clk 0:00:44]} 37. c7 {[%clk 0:01:14]}  Rc8 {[%clk 0:00:44]} 38. b6 {[%clk 0:01:14]}  h5 {[%clk 0:00:27]} 39. b7 {[%clk 0:01:11]} 1-0


[Site "https://www.chess.com"]

[Event "Titled Tuesday Blitz March 07 Late 2023"]
[White "Kho, Darrell"]
[Black "Gamboa, Juan Pablo"]
[WhiteFideId "1019317"]
[BlackFideId "105180"]
[WhiteElo "2159"]
[BlackElo "1860"]
[Result "1-0"]
[Round "08"]
[TimeControl "180+2"]
[Date "2023.03.07"]
[WhiteClock "0:00:27"]
[BlackClock "0:01:15"]

1. e4 {[%clk 0:02:56]}  e6 {[%clk 0:02:59]} 2. d4 {[%clk 0:02:53]}  d5 {[%clk 0:02:59]} 3. Nd2 {[%clk 0:02:53]}  c5 {[%clk 0:02:59]} 4. Ngf3 {[%clk 0:02:52]}  cxd4 {[%clk 0:02:56]} 5. Nxd4 {[%clk 0:02:51]}  Nf6 {[%clk 0:02:56]} 6. exd5 {[%clk 0:02:42]}  Qxd5 {[%clk 0:02:54]} 7. Nb5 {[%clk 0:02:41]}  Qe5+ {[%clk 0:02:46]} 8. Be2 {[%clk 0:02:35]}  a6 {[%clk 0:02:39]} 9. Nc4 {[%clk 0:02:07]}  Qc5 {[%clk 0:02:31]} 10. Be3 {[%clk 0:01:48]}  Qxc4 {[%clk 0:02:30]} 11. Bxc4 {[%clk 0:01:31]}  axb5 {[%clk 0:02:30]} 12. Bxb5+ {[%clk 0:01:30]}  Bd7 {[%clk 0:02:31]} 13. Bxd7+ {[%clk 0:01:26]}  Nbxd7 {[%clk 0:02:30]} 14. O-O {[%clk 0:01:24]}  Be7 {[%clk 0:02:31]} 15. Qf3 {[%clk 0:01:16]}  O-O {[%clk 0:02:30]} 16. Rfd1 {[%clk 0:01:12]}  b5 {[%clk 0:02:22]} 17. c3 {[%clk 0:01:06]}  Ne5 {[%clk 0:02:22]} 18. Qg3 {[%clk 0:00:57]}  Ng6 {[%clk 0:02:16]} 19. Qg5 {[%clk 0:00:46]}  Nd5 {[%clk 0:02:15]} 20. Qg3 {[%clk 0:00:44]}  Bf6 {[%clk 0:02:04]} 21. Bd4 {[%clk 0:00:42]}  Bh4 {[%clk 0:01:57]} 22. Qg4 {[%clk 0:00:39]}  f5 {[%clk 0:01:53]} 23. Qf3 {[%clk 0:00:38]}  Rfd8 {[%clk 0:01:43]} 24. g3 {[%clk 0:00:38]}  Bg5 {[%clk 0:01:38]} 25. Qe2 {[%clk 0:00:37]}  Re8 {[%clk 0:01:34]} 26. Qxb5 {[%clk 0:00:37]}  f4 {[%clk 0:01:33]} 27. Qd7 {[%clk 0:00:31]}  Re7 {[%clk 0:01:29]} 28. Qc6 {[%clk 0:00:31]}  Rae8 {[%clk 0:01:23]} 29. a4 {[%clk 0:00:31]}  fxg3 {[%clk 0:01:23]} 30. hxg3 {[%clk 0:00:30]}  Rc7 {[%clk 0:01:18]} 31. Qxe8+ {[%clk 0:00:27]}  Nf8 {[%clk 0:01:14]} 32. a5 {[%clk 0:00:27]}  Re7 {[%clk 0:01:14]} 33. Qxe7 {[%clk 0:00:27]}  Nxe7 {[%clk 0:01:14]} 34. a6 {[%clk 0:00:27]}  Nc6 {[%clk 0:01:15]} 35. a7 {[%clk 0:00:27]}  Nxa7 {[%clk 0:01:15]} 36. Rxa7 {[%clk 0:00:27]}  Bf6 {[%clk 0:01:15]} 37. Bxf6 {[%clk 0:00:26]}  gxf6 {[%clk 0:01:15]} 38. Rd8 {[%clk 0:00:27]} 1-0


[Site "https://www.chess.com"]

[Event "Titled Tuesday Blitz March 07 Late 2023"]
[White "Fedoseev, Vladimir"]
[Black "Carlsen, Magnus"]
[WhiteFideId "24130737"]
[BlackFideId "1503014"]
[WhiteElo "2752"]
[BlackElo "2852"]
[Result "1-0"]
[Round "09"]
[TimeControl "180+2"]
[Date "2023.03.07"]
[WhiteClock "0:00:13"]
[BlackClock "0:00:06"]

1. Nf3 {[%clk 0:00:11]}  Nf6 {[%clk 0:02:56]} 2. g3 {[%clk 0:00:12]}  b6 {[%clk 0:00:13]} 3. Bg2 {[%clk 0:00:13]}  Bb7 {[%clk 0:00:13]} 4. O-O {[%clk 0:00:13]}  g6 {[%clk 0:00:13]} 5. c4 {[%clk 0:00:14]}  Bg7 {[%clk 0:00:14]} 6. Nc3 {[%clk 0:00:15]}  O-O {[%clk 0:00:14]} 7. d4 {[%clk 0:00:15]}  Ne4 {[%clk 0:00:14]} 8. Qc2 {[%clk 0:00:13]}  Nxc3 {[%clk 0:00:14]} 9. Qxc3 {[%clk 0:00:13]}  c5 {[%clk 0:00:14]} 10. e3 {[%clk 0:00:12]}  cxd4 {[%clk 0:00:13]} 11. exd4 {[%clk 0:00:12]}  d5 {[%clk 0:00:13]} 12. Ne5 {[%clk 0:00:11]}  e6 {[%clk 0:00:10]} 13. Bf4 {[%clk 0:00:10]}  Nc6 {[%clk 0:00:11]} 14. cxd5 {[%clk 0:00:09]}  Nxe5 {[%clk 0:00:09]} 15. dxe5 {[%clk 0:00:07]}  Bxd5 {[%clk 0:00:10]} 16. Rfd1 {[%clk 0:00:06]}  Rc8 {[%clk 0:00:10]} 17. Qa3 {[%clk 0:00:06]}  Rc5 {[%clk 0:00:09]} 18. b4 {[%clk 0:00:05]}  Rc7 {[%clk 0:00:07]} 19. Bxd5 {[%clk 0:00:05]}  exd5 {[%clk 0:00:08]} 20. Rd3 {[%clk 0:00:04]}  Rd7 {[%clk 0:00:04]} 21. Rad1 {[%clk 0:00:04]}  Qa8 {[%clk 0:00:04]} 22. Qb3 {[%clk 0:00:04]}  Rfd8 {[%clk 0:00:04]} 23. Bg5 {[%clk 0:00:04]}  Re8 {[%clk 0:00:05]} 24. f4 {[%clk 0:00:03]}  h6 {[%clk 0:00:05]} 25. Bh4 {[%clk 0:00:04]}  g5 {[%clk 0:00:05]} 26. fxg5 {[%clk 0:00:05]}  hxg5 {[%clk 0:00:06]} 27. Bxg5 {[%clk 0:00:05]}  Rxe5 {[%clk 0:00:06]} 28. Bf4 {[%clk 0:00:06]}  Re2 {[%clk 0:00:06]} 29. R3d2 {[%clk 0:00:05]}  Rxd2 {[%clk 0:00:05]} 30. Rxd2 {[%clk 0:00:06]}  d4 {[%clk 0:00:06]} 31. Qd3 {[%clk 0:00:06]}  Qd5 {[%clk 0:00:06]} 32. Re2 {[%clk 0:00:07]}  Rd8 {[%clk 0:00:05]} 33. h4 {[%clk 0:00:07]}  Rc8 {[%clk 0:00:06]} 34. Kh2 {[%clk 0:00:07]}  Bf6 {[%clk 0:00:05]} 35. Bd2 {[%clk 0:00:06]}  Kg7 {[%clk 0:00:05]} 36. Rf2 {[%clk 0:00:06]}  Re8 {[%clk 0:00:05]} 37. Qf1 {[%clk 0:00:06]}  Re6 {[%clk 0:00:04]} 38. Bg5 {[%clk 0:00:05]}  Bxg5 {[%clk 0:00:03]} 39. Rxf7+ {[%clk 0:00:06]}  Kg6 {[%clk 0:00:04]} 40. hxg5 {[%clk 0:00:05]}  Re2+ {[%clk 0:00:02]} 41. Qxe2 {[%clk 0:00:05]}  Kxf7 {[%clk 0:00:02]} 42. Qh5+ {[%clk 0:00:05]}  Kg8 {[%clk 0:00:03]} 43. Qg6+ {[%clk 0:00:05]}  Kf8 {[%clk 0:00:03]} 44. Qf6+ {[%clk 0:00:06]}  Kg8 {[%clk 0:00:03]} 45. Qg6+ {[%clk 0:00:06]}  Kf8 {[%clk 0:00:04]} 46. Qf6+ {[%clk 0:00:06]}  Ke8 {[%clk 0:00:04]} 47. Qg6+ {[%clk 0:00:07]}  Kd7 {[%clk 0:00:05]} 48. Qh7+ {[%clk 0:00:07]}  Kc6 {[%clk 0:00:05]} 49. g6 {[%clk 0:00:08]}  Qxa2+ {[%clk 0:00:04]} 50. Kh3 {[%clk 0:00:08]}  Qe6+ {[%clk 0:00:05]} 51. g4 {[%clk 0:00:09]}  d3 {[%clk 0:00:05]} 52. g7 {[%clk 0:00:09]}  d2 {[%clk 0:00:05]} 53. Qc2+ {[%clk 0:00:09]}  Kb5 {[%clk 0:00:03]} 54. Qxd2 {[%clk 0:00:09]}  Qf7 {[%clk 0:00:03]} 55. Qg5+ {[%clk 0:00:09]}  Kxb4 {[%clk 0:00:03]} 56. g8=Q {[%clk 0:00:09]}  Qf3+ {[%clk 0:00:04]} 57. Kh4 {[%clk 0:00:09]}  Qh1+ {[%clk 0:00:04]} 58. Kg3 {[%clk 0:00:10]}  Qg1+ {[%clk 0:00:04]} 59. Kf4 {[%clk 0:00:11]}  Qd4+ {[%clk 0:00:05]} 60. Kf5 {[%clk 0:00:12]}  Qd3+ {[%clk 0:00:06]} 61. Kf6 {[%clk 0:00:12]}  Qd4+ {[%clk 0:00:06]} 62. Kg6 {[%clk 0:00:13]}  Qe4+ {[%clk 0:00:06]} 63. Kh6 {[%clk 0:00:13]} 1-0


[Site "https://www.chess.com"]

[Event "Titled Tuesday Blitz March 07 Late 2023"]
[White "Firouzja, Alireza"]
[Black "Liang, Awonder"]
[WhiteFideId "12573981"]
[BlackFideId "2056437"]
[WhiteElo "2904"]
[BlackElo "2508"]
[Result "1-0"]
[Round "09"]
[TimeControl "180+2"]
[Date "2023.03.07"]
[WhiteClock "0:02:20"]
[BlackClock "0:01:52"]

1. d4 {[%clk 0:02:59]}  Nf6 {[%clk 0:02:58]} 2. c4 {[%clk 0:02:57]}  e6 {[%clk 0:02:59]} 3. a3 {[%clk 0:02:58]}  d5 {[%clk 0:02:58]} 4. e3 {[%clk 0:02:58]}  c5 {[%clk 0:02:58]} 5. cxd5 {[%clk 0:02:56]}  exd5 {[%clk 0:02:56]} 6. Nf3 {[%clk 0:02:54]}  Nc6 {[%clk 0:02:55]} 7. Nc3 {[%clk 0:02:53]}  Bg4 {[%clk 0:02:39]} 8. Be2 {[%clk 0:02:49]}  Bd6 {[%clk 0:02:27]} 9. dxc5 {[%clk 0:02:42]}  Bxc5 {[%clk 0:02:28]} 10. O-O {[%clk 0:02:42]}  O-O {[%clk 0:02:27]} 11. b4 {[%clk 0:02:42]}  Bb6 {[%clk 0:02:27]} 12. Bb2 {[%clk 0:02:36]}  d4 {[%clk 0:02:21]} 13. Nxd4 {[%clk 0:02:32]}  Nxd4 {[%clk 0:02:22]} 14. Bxg4 {[%clk 0:02:30]}  Nxg4 {[%clk 0:01:55]} 15. Qxg4 {[%clk 0:02:30]}  Nc6 {[%clk 0:01:55]} 16. Nd5 {[%clk 0:02:20]}  f6 {[%clk 0:01:52]} 17. Rad1 {[%clk 0:02:20]} 1-0


[Site "https://www.chess.com"]

[Event "Titled Tuesday Blitz March 07 Late 2023"]
[White "Martinez Alcantara, Jose Eduardo"]
[Black "Vachier-Lagrave, Maxime"]
[WhiteFideId "3805662"]
[BlackFideId "623539"]
[WhiteElo "2712"]
[BlackElo "2740"]
[Result "0-1"]
[Round "09"]
[TimeControl "180+2"]
[Date "2023.03.07"]
[WhiteClock "0:00:02"]
[BlackClock "0:00:07"]

1. e4 {[%clk 0:03:00]}  e5 {[%clk 0:02:55]} 2. Nf3 {[%clk 0:03:00]}  Nf6 {[%clk 0:02:55]} 3. Nc3 {[%clk 0:03:00]}  Nc6 {[%clk 0:02:52]} 4. h3 {[%clk 0:03:01]}  g6 {[%clk 0:02:51]} 5. Bc4 {[%clk 0:02:58]}  Bg7 {[%clk 0:02:51]} 6. d3 {[%clk 0:02:58]}  d6 {[%clk 0:02:48]} 7. a3 {[%clk 0:02:58]}  O-O {[%clk 0:02:41]} 8. Be3 {[%clk 0:02:57]}  Nd7 {[%clk 0:02:36]} 9. Qd2 {[%clk 0:02:49]}  Nb6 {[%clk 0:02:34]} 10. Ba2 {[%clk 0:02:46]}  Nd4 {[%clk 0:02:34]} 11. Bxd4 {[%clk 0:02:43]}  exd4 {[%clk 0:02:34]} 12. Ne2 {[%clk 0:02:43]}  d5 {[%clk 0:02:29]} 13. exd5 {[%clk 0:02:36]}  Nxd5 {[%clk 0:02:27]} 14. O-O {[%clk 0:02:36]}  c5 {[%clk 0:02:21]} 15. Ng3 {[%clk 0:02:20]}  b6 {[%clk 0:02:20]} 16. Rae1 {[%clk 0:02:18]}  Bb7 {[%clk 0:02:20]} 17. Re2 {[%clk 0:02:00]}  Qb8 {[%clk 0:02:06]} 18. Ne4 {[%clk 0:01:42]}  Nf4 {[%clk 0:02:01]} 19. Ree1 {[%clk 0:01:43]}  Qc7 {[%clk 0:01:53]} 20. h4 {[%clk 0:01:43]}  Rae8 {[%clk 0:01:46]} 21. Neg5 {[%clk 0:01:41]}  Rxe1 {[%clk 0:01:31]} 22. Rxe1 {[%clk 0:01:41]}  h6 {[%clk 0:01:31]} 23. Ne4 {[%clk 0:01:22]}  Kh8 {[%clk 0:01:26]} 24. Qd1 {[%clk 0:01:22]}  f5 {[%clk 0:01:07]} 25. Ned2 {[%clk 0:01:22]}  Bf6 {[%clk 0:01:07]} 26. Nc4 {[%clk 0:01:05]}  Kg7 {[%clk 0:01:03]} 27. Ncd2 {[%clk 0:00:53]}  g5 {[%clk 0:00:59]} 28. g3 {[%clk 0:00:25]}  Nh3+ {[%clk 0:00:58]} 29. Kg2 {[%clk 0:00:23]}  g4 {[%clk 0:00:58]} 30. Rf1 {[%clk 0:00:20]}  Ng5 {[%clk 0:00:44]} 31. hxg5 {[%clk 0:00:20]}  hxg5 {[%clk 0:00:45]} 32. Rh1 {[%clk 0:00:19]}  gxf3+ {[%clk 0:00:44]} 33. Kg1 {[%clk 0:00:19]}  g4 {[%clk 0:00:34]} 34. Nf1 {[%clk 0:00:14]}  Bg5 {[%clk 0:00:31]} 35. c3 {[%clk 0:00:15]}  Qe7 {[%clk 0:00:19]} 36. cxd4 {[%clk 0:00:14]}  cxd4 {[%clk 0:00:19]} 37. Qb3 {[%clk 0:00:15]}  Rd8 {[%clk 0:00:16]} 38. Qa4 {[%clk 0:00:14]}  Ba8 {[%clk 0:00:13]} 39. Qb5 {[%clk 0:00:15]}  Kg6 {[%clk 0:00:13]} 40. Qc4 {[%clk 0:00:12]}  Bd5 {[%clk 0:00:12]} 41. Qc2 {[%clk 0:00:09]}  Bxa2 {[%clk 0:00:12]} 42. b3 {[%clk 0:00:09]}  Bb1 {[%clk 0:00:08]} 43. Qxb1 {[%clk 0:00:09]}  Rc8 {[%clk 0:00:09]} 44. b4 {[%clk 0:00:01]}  Qe2 {[%clk 0:00:08]} 45. Qb3 {[%clk 0:00:02]}  Qxf1+ {[%clk 0:00:08]} 46. Kh2 {[%clk 0:00:02]}  Qxf2# {[%clk 0:00:07]} 0-1


[Site "https://www.chess.com"]